bitfinex/quotes_ETHUSD_20240926
["timestamp","ask_amount","ask_price","bid_price","bid_amount"]
[1727322746372,1.65233403,2609.7,2609.5,3.06563]
[1727322746589,1.89377743,2609.7,2609.4,3.06577]
[1727322746731,2.41443403,2609.9,2609.5,3.06569]
[1727322747665,2.41443403,2609.9,2609.4,3.06577]
[1727322747849,0.62199234,2609.8,2609.4,3.06576]
[1727322748372,0.7621,2609.9,2609.6,3.06554]
[1727322749264,0.7621,2609.9,2609.6,6.13107]
[1727322749562,0.7621,2609.9,2609.6,3.06553]
[1727322749860,0.7621,2609.9,2609.6,3.06552]
[1727322750059,1.01312373,2609.9,2609.6,3.06552]
[1727322750756,1.01312373,2609.9,2609.7,3.06548]
[1727322750966,0.7621,2609.9,2609.7,3.06548]
[1727322751460,0.87720323,2610.1,2609.7,3.06548]
[1727322751824,0.87720323,2610.1,2609.8,0.0742416]
[1727322752249,0.87720323,2610.1,2609.7,3.06548]
[1727322752422,0.87720323,2610.1,2609.9,0.0742416]
[1727322752627,0.87720323,2610.1,2609.7,3.06548]
[1727322752628,1.43664696,2610.1,2609.7,3.06548]
[1727322752881,1.43664696,2610.1,2609.6,3.06552]
[1727322753030,1.43664696,2610.1,2609.8,0.0742416]
[1727322753230,1.43664696,2610.1,2609.6,6.13104]
[1727322753499,1.43664696,2610.1,2609.9,0.0742416]
[1727322753769,0.4501547,2610.0,2609.7,0.0742416]
[1727322753925,0.4501547,2610.0,2609.6,3.06552]
[1727322754120,0.4501547,2610.0,2609.8,0.0742416]
[1727322754341,0.4501547,2610.0,2609.6,6.13106]
[1727322754546,0.4501547,2610.0,2609.9,0.07451803]
[1727322754765,0.4501547,2610.0,2609.6,3.06551]
[1727322754935,0.4501547,2610.0,2609.9,0.07451803]
[1727322755137,0.4501547,2610.0,2609.7,3.06544]
[1727322755338,2.52953726,2610.1,2609.9,0.07451803]
[1727322755560,2.52953726,2610.1,2609.7,3.06544]
[1727322755773,2.52953726,2610.1,2610.0,0.07451803]
[1727322755971,2.52953726,2610.1,2609.7,3.06544]
[1727322756179,2.52953726,2610.1,2610.0,0.07451803]
[1727322756348,3.08898099,2610.1,2609.7,3.06544]
[1727322756541,3.08898099,2610.1,2610.0,0.07451803]
[1727322756737,3.08898099,2610.1,2609.7,3.06544]
[1727322756944,3.08898099,2610.1,2610.0,0.07451803]
[1727322757166,3.08898099,2610.1,2609.7,3.06544]
[1727322757366,0.6153881,2610.0,2609.7,3.06544]
[1727322757562,2.52953726,2610.1,2609.7,3.06544]
[1727322757771,5.59455726,2610.1,2609.7,3.06544]
[1727322758848,2.52953726,2610.1,2609.7,3.06544]
[1727322761605,5.59457726,2610.1,2609.6,3.06559]
[1727322761978,3.06514,2610.0,2609.5,3.06562]
[1727322762185,0.55946773,2609.9,2609.5,3.06562]
[1727322763218,2.21180176,2609.9,2609.5,3.06562]
[1727322763402,0.815,2609.8,2609.3,3.06587]
[1727322763703,0.91080658,2609.8,2609.3,6.13172]
[1727322764004,1.52958097,2609.8,2609.3,3.06585]
[1727322764406,1.52958097,2609.8,2609.4,3.06575]
[1727322764609,1.43377439,2609.8,2609.4,3.06575]
[1727322764813,1.43377439,2609.8,2609.0,3.0]
[1727322764973,0.815,2609.8,2609.4,3.06583]
[1727322765616,0.815,2609.8,2609.4,6.13161]
[1727322765910,0.815,2609.8,2609.4,6.13154]
[1727322766280,0.815,2609.8,2609.4,3.06576]
[1727322766483,0.815,2609.8,2609.4,6.13153]
[1727322766682,0.815,2609.8,2609.5,0.07479446]
[1727322766901,1.37784206,2609.8,2609.5,0.07479446]
[1727322767125,1.47364853,2609.8,2609.5,0.07479446]
[1727322767516,1.65233403,2609.7,2609.5,0.07479446]
[1727322767914,1.65233403,2609.7,2609.5,3.14049446]
[1727322768215,1.65233403,2609.7,2609.5,3.14050446]
[1727322768713,1.74813906,2609.7,2609.5,3.14050446]
[1727322768913,2.36726217,2609.7,2609.5,3.14050446]
[1727322769116,2.27145714,2609.7,2609.5,0.07479446]
[1727322769639,2.27145714,2609.7,2609.5,3.06571]
[1727322769847,1.65233403,2609.7,2609.6,0.07479446]
[1727322770045,0.815,2609.8,2609.6,0.07479446]
[1727322770215,0.815,2609.8,2609.7,3.06548]
[1727322770423,0.8117,2610.3,2610.0,3.06509]
[1727322771103,0.8117,2610.3,2610.1,0.07481174]
[1727322771399,0.25598321,2610.2,2610.1,0.07481174]
[1727322772336,0.25598321,2610.2,2609.9,6.1304]
[1727322772543,0.25598321,2610.2,2610.0,3.06505]
[1727322772927,0.25598321,2610.2,2610.1,0.0748031]
[1727322778758,0.25598321,2610.2,2609.9,3.06524]
[1727322779247,0.25598321,2610.2,2610.0,0.0746217]
[1727322782268,2.00410688,2610.2,2610.0,0.0746217]
[1727322782427,4.39269869,2610.1,2609.6,3.06552]
[1727322783564,1.32768869,2610.1,2609.7,3.06546]
[1727322786642,1.32768869,2610.1,2609.8,3.06535]
[1727322787374,1.65233403,2610.0,2609.5,3.06572]
[1727322787570,1.65233403,2609.8,2609.4,3.06576]
[1727322787744,1.36400427,2609.9,2609.6,3.06553]
[1727322788731,0.7595,2609.9,2609.6,3.06553]
[1727322790368,0.7595,2609.9,2609.6,6.13106]
[1727322790570,0.7595,2609.9,2609.7,3.06542]
[1727322790883,0.7595,2609.9,2609.6,3.06553]
[1727322791193,0.7595,2609.9,2609.7,3.06545]
[1727322791968,0.7595,2609.9,2609.6,3.06553]
[1727322793304,0.7595,2609.9,2609.7,3.06541]
[1727322793598,0.7595,2609.9,2609.8,3.06536]
[1727322796697,0.8064,2610.1,2609.9,3.06519]
[1727322796909,0.8064,2610.3,2610.0,3.06512]
[1727322797326,0.8064,2610.3,2609.5,3.06569]
[1727322797327,3.06489,2610.2,2610.1,0.07215372]
[1727322797619,3.95788519,2610.2,2609.7,3.06542]
[1727322797780,1.65233403,2610.0,2609.7,3.06542]
[1727322797979,1.74812969,2610.0,2609.7,3.06542]
[1727322798180,2.52943752,2610.0,2609.7,3.06542]
[1727322799026,2.52943752,2610.0,2609.5,3.06564]
[1727322799229,2.52943752,2610.0,2609.7,3.06548]
[1727322799512,1.65233403,2609.8,2609.4,3.06583]
[1727322799700,0.09580636,2609.7,2609.4,3.06583]
[1727322800600,0.09580636,2609.7,2609.4,6.13166]
[1727322801007,0.09580636,2609.7,2609.4,3.06583]
[1727322801328,0.7757,2609.5,2609.4,3.06583]
[1727322802381,0.7757,2609.7,2609.4,3.06583]
[1727322809627,0.7757,2609.7,2609.2,6.13198]
[1727322809827,0.7757,2609.7,2609.3,3.06591]
[1727322810365,0.7757,2609.7,2609.4,3.06582]
[1727322810564,0.7757,2609.7,2609.2,6.13196]
[1727322810771,1.38276177,2609.7,2609.3,3.06593]
[1727322810970,1.65233403,2609.6,2609.2,3.06597]
[1727322811268,1.65233403,2609.6,2608.8,0.79694501]
[1727322811269,1.65233403,2609.4,2608.9,3.06631]
[1727322811426,0.09581986,2609.3,2608.9,3.06638]
[1727322811832,1.74815682,2609.4,2609.0,3.13628739]
[1727322812131,2.37248246,2609.4,2609.0,3.13628739]
[1727322812340,5.43834246,2609.4,2609.0,0.07003739]
[1727322812661,5.43834246,2609.4,2609.0,3.13633739]
[1727322812963,2.37248246,2609.4,2609.0,3.13633739]
[1727322813931,2.37248246,2609.4,2609.0,3.13626739]
[1727322814161,0.62480525,2609.3,2609.0,3.13626739]
[1727322814550,2.37248246,2609.4,2609.0,3.13626739]
[1727322814551,0.09582279,2609.4,2609.1,3.06612]
[1727322814756,0.90562043,2609.5,2609.2,0.07049071]
[1727322815468,0.90562043,2609.5,2609.0,6.13246]
[1727322815671,1.46798188,2609.5,2609.3,0.07049071]
[1727322815895,1.46798188,2609.5,2609.0,3.06623]
[1727322816184,4.53371188,2609.5,2609.0,3.06623]
[1727322816398,4.53371188,2609.5,2608.7,3.06656]
[1727322816399,0.8304,2609.1,2608.7,3.06656]
[1727322816553,0.92623397,2609.1,2608.8,3.06652]
[1727322816881,0.8304,2609.1,2608.8,3.06652]
[1727322817439,0.8304,2609.1,2608.5,3.06681]
[1727322817440,4.71864403,2609.0,2608.5,3.06681]
[1727322817654,0.09583602,2608.9,2608.5,3.06681]
[1727322817950,0.8304,2608.8,2608.5,3.06681]
[1727322818341,0.8304,2608.8,2608.6,3.06677]
[1727322818676,0.8304,2608.8,2608.5,3.06681]
[1727322819875,2.48273403,2608.8,2608.5,3.06681]
[1727322821651,0.8304,2608.8,2608.5,3.06681]
[1727322821961,3.06603,2609.3,2608.5,3.06681]
[1727322821962,0.7915,2609.5,2609.1,3.06617]
[1727322822160,0.09581844,2609.4,2609.1,3.06617]
[1727322822355,0.65634369,2609.4,2609.0,3.0663]
[1727322822556,0.09581844,2609.4,2609.0,3.0663]
[1727322822795,1.65233403,2609.3,2609.0,3.0663]
[1727322823793,0.0958224,2609.2,2609.0,3.0663]
[1727322824289,0.8046,2609.1,2608.9,6.13274]
[1727322824498,0.8046,2609.1,2608.9,3.06635]
[1727322826060,0.09582571,2609.0,2608.9,3.06635]
[1727322826663,0.8046,2609.1,2608.8,3.06654]
[1727322826890,0.09583003,2609.0,2608.9,0.0682804]
[1727322827075,1.36647298,2609.1,2608.9,0.0682804]
[1727322828024,3.01880701,2609.1,2608.9,0.0682804]
[1727322828181,2.45693403,2609.1,2608.7,3.06659]
[1727322828377,2.45693403,2609.1,2609.0,0.0685049]
[1727322828619,2.45693403,2609.1,2608.7,3.06659]
[1727322828791,2.55276898,2609.1,2609.0,0.0685049]
[1727322828984,3.11465388,2609.1,2608.8,3.06653]
[1727322829186,2.55276898,2609.1,2609.0,0.0685049]
[1727322829507,2.55276898,2609.1,2608.8,3.06653]
[1727322829679,2.55276898,2609.1,2609.0,0.0685049]
[1727322829878,2.55276898,2609.1,2608.8,3.06653]
[1727322830100,2.45693403,2609.1,2609.0,0.0685049]
[1727322830281,2.55276696,2609.1,2608.8,3.06653]
[1727322830481,2.55276696,2609.1,2609.0,0.0685049]
[1727322830720,3.11465166,2609.1,2608.5,3.0668]
[1727322830939,3.11465166,2609.1,2609.0,0.0685049]
[1727322831084,3.11465166,2609.1,2608.5,3.0668]
[1727322831085,3.11465166,2609.1,2608.7,3.0666]
[1727322831285,3.11465166,2609.1,2609.0,0.0685049]
[1727322831778,3.11465166,2609.1,2608.7,3.0666]
[1727322831979,0.61807317,2609.0,2608.7,3.0666]
[1727322832188,5.61896696,2609.1,2608.6,3.06675]
[1727322832495,2.55276696,2609.1,2608.6,3.06675]
[1727322832694,2.55276696,2609.1,2608.7,3.06665]
[1727322832906,3.11465166,2609.1,2608.7,3.06665]
[1727322834767,3.11465166,2609.1,2608.6,3.06671]
[1727322835459,3.11465166,2609.1,2608.7,3.0666]
[1727322836357,1.65233403,2608.9,2608.6,3.06671]
[1727322836533,0.61807317,2609.0,2608.6,3.06671]
[1727322841462,1.65233403,2608.9,2608.6,3.06671]
[1727322841671,0.8149,2608.8,2608.6,3.06671]
[1727322841842,0.8149,2608.8,2608.7,0.06871215]
[1727322842040,0.8149,2608.8,2608.5,3.06683]
[1727322842250,0.8149,2608.8,2608.7,0.06871215]
[1727322842449,0.8149,2608.8,2608.5,3.06688]
[1727322842761,0.8149,2608.8,2608.4,3.1045994]
[1727322842959,1.5354902,2608.8,2608.4,3.1045994]
[1727322843171,1.43964767,2608.8,2608.5,0.06872942]
[1727322843463,1.7481765,2608.7,2608.5,0.06872942]
[1727322844256,0.7816,2608.6,2608.5,0.06872942]
[1727322845542,3.84837,2608.6,2608.5,0.06872942]
[1727322845890,5.1796968,2608.6,2608.5,0.06872942]
[1727322846382,5.1796968,2608.6,2608.4,0.0376694]
[1727322846383,3.88079,2608.5,2608.4,0.0376694]
[1727322846583,5.62898789,2608.5,2608.4,0.0376694]
[1727322847694,0.90976253,2608.5,2608.4,0.0376694]
[1727322847842,3.97665253,2608.5,2608.4,0.0376694]
[1727322848046,4.96977163,2608.5,2608.4,0.10462166]
[1727322848348,5.51977163,2608.5,2608.4,0.10462166]
[1727322848746,5.51977163,2608.5,2608.4,0.0376694]
[1727322848939,5.92114423,2608.5,2608.4,0.0376694]
[1727322861144,8.92114423,2608.5,2608.4,0.0376694]
[1727322861347,8.8252817,2608.5,2608.4,0.0376694]
[1727322867240,3.06783,2607.7,2607.6,0.0376694]
[1727322867453,4.81604838,2607.7,2607.6,0.0376694]
[1727322867612,4.81604838,2607.7,2607.6,0.10359244]
[1727322873751,4.72016403,2607.7,2607.6,0.10359244]
[1727322879556,1.65233403,2607.7,2607.6,0.10359244]
[1727322879741,4.72016403,2607.7,2607.6,0.10359244]
[1727322880781,1.65233403,2607.7,2607.6,0.10359244]
[1727322881115,4.71994403,2607.9,2607.6,0.14169244]
[1727322881322,7.78763403,2607.9,2607.6,0.14169244]
[1727322881526,4.71994403,2607.9,2607.6,0.14169244]
[1727322881815,3.06772,2607.8,2607.6,0.14169244]
[1727322883183,1.65233403,2607.7,2607.6,0.14169244]
[1727322884619,4.72016403,2607.7,2607.6,0.14169244]
[1727322885329,6.13531,2607.9,2607.6,0.14169244]
[1727322885625,4.72007403,2607.8,2607.6,0.14169244]
[1727322889923,5.49884243,2607.8,2607.6,0.14169244]
[1727322892430,3.06783,2607.7,2607.6,0.14169244]
[1727322897316,3.88833,2607.7,2607.6,0.10359244]
[1727322897861,3.06783,2607.7,2607.6,0.10359244]
[1727322898545,2.43110243,2607.8,2607.6,0.14169244]
[1727322898975,3.06783,2607.7,2607.6,0.14169244]
[1727322899429,2.43110243,2607.8,2607.6,0.14169244]
[1727322899639,5.49889243,2607.8,2607.6,0.14169244]
[1727322900351,1.67715024,2607.7,2607.6,0.10359244]
[1727322900556,3.92448024,2607.7,2607.6,0.10359244]
[1727322903042,0.85665024,2607.7,2607.6,0.10359244]
[1727322903257,3.06706,2608.4,2607.8,0.0381]
[1727322903462,4.71939403,2608.4,2607.8,3.10574]
[1727322903633,4.81525427,2608.4,2607.8,3.10574]
[1727322903963,7.78691403,2608.2,2607.9,0.06644111]
[1727322904263,0.65765567,2608.4,2607.9,0.06644111]
[1727322904264,3.06715,2608.3,2607.9,0.06644111]
[1727322904470,1.65233403,2608.2,2607.9,0.06644111]
[1727322904883,1.74819452,2608.2,2607.9,0.06644111]
[1727322905256,1.65233403,2608.2,2607.9,0.06644111]
[1727322905507,1.74819451,2608.2,2607.9,0.06644111]
[1727322905797,1.65233403,2608.0,2607.9,0.06644111]
[1727322905932,1.65233403,2608.2,2607.9,0.06644111]
[1727322907067,2.7227172,2611.6,2608.0,0.0381]
[1727322907068,3.06682,2608.6,2608.0,0.0381]
[1727322907274,1.65233403,2608.4,2608.0,0.10421299]
[1727322912775,4.71936403,2608.4,2608.0,0.10421299]
[1727322913774,1.65233403,2608.4,2608.0,0.10421299]
[1727322914563,4.71937403,2608.4,2608.0,0.10421299]
[1727322916880,1.65233403,2608.2,2608.0,0.10421299]
[1727322917944,0.09585623,2608.1,2608.0,0.06611299]
[1727322918156,5.49435403,2608.2,2607.7,0.0381]
[1727322918442,1.65233403,2608.0,2607.7,3.10592]
[1727322918646,1.65233403,2608.0,2607.8,0.06562086]
[1727322919161,1.65233403,2608.0,2607.9,0.06564676]
[1727322919479,1.65233403,2608.0,2607.7,3.10592]
[1727322920044,1.65233403,2608.0,2607.8,0.06564676]
[1727322920267,1.65233403,2608.0,2607.7,3.10592]
[1727322920692,1.65233403,2608.0,2607.9,0.06564676]
[1727322920885,1.65233403,2608.0,2607.8,0.06564676]
[1727322921284,1.65233403,2608.0,2607.7,3.10592]
[1727322921856,1.65233403,2608.0,2607.8,0.06564676]
[1727322922084,1.65233403,2608.0,2607.7,3.10592]
[1727322922289,1.65233403,2608.0,2607.9,0.06564676]
[1727322922774,1.65233403,2608.0,2607.8,3.06771]
[1727322922957,1.65233403,2608.0,2607.9,0.06565539]
[1727322923158,1.65233403,2608.0,2607.7,3.1059]
[1727322923358,1.65233403,2608.0,2607.9,0.06569856]
[1727322923558,1.65233403,2608.0,2607.7,3.1059]
[1727322923788,1.65233403,2608.0,2607.9,0.06569856]
[1727322924294,1.65233403,2608.0,2607.7,3.10587]
[1727322924483,1.65233403,2608.0,2607.9,0.06568993]
[1727322924687,1.65233403,2608.0,2607.7,3.10587]
[1727322925000,1.65233403,2608.0,2607.9,0.06568993]
[1727322925152,1.65233403,2608.0,2607.7,6.17364]
[1727322925361,1.65233403,2608.0,2607.9,0.06568993]
[1727322925997,1.65233403,2608.0,2607.7,6.1736]
[1727322926150,1.65233403,2608.0,2607.9,0.06568993]
[1727322926355,1.65233403,2608.0,2607.7,6.1736]
[1727322926596,1.65233403,2608.0,2607.9,0.06568993]
[1727322926969,1.65233403,2608.0,2607.8,3.06761]
[1727322927191,3.84647,2608.4,2607.9,3.13322993]
[1727322927502,2.03698103,2608.3,2607.9,3.13322993]
[1727322927712,2.03698103,2608.3,2607.9,6.20075993]
[1727322927855,2.03698103,2608.3,2607.9,3.13321993]
[1727322928553,2.03698103,2608.3,2607.9,0.06568993]
[1727322928900,1.65233403,2608.1,2607.9,0.06568993]
[1727322929261,1.65233403,2608.1,2607.9,3.13326993]
[1727322932797,2.03698103,2608.3,2607.9,3.13317993]
[1727322933098,0.384647,2608.3,2608.1,0.0381]
[1727322933394,1.65233403,2608.5,2608.1,3.10539]
[1727322933692,0.5519094,2608.4,2608.2,3.06722]
[1727322933878,1.65233403,2608.5,2608.2,3.13275453]
[1727322934079,1.65233403,2608.5,2608.2,0.06553453]
[1727322934661,1.65233403,2608.5,2608.2,3.13277453]
[1727322935407,1.65233403,2608.5,2608.2,0.06553453]
[1727322944011,1.65233403,2608.3,2608.2,0.06553453]
[1727322944323,4.71946403,2608.3,2607.9,3.06759]
[1727322944524,4.81531775,2608.3,2608.2,0.0651979]
[1727322944823,5.60354683,2608.3,2607.9,3.06759]
[1727322944990,5.60354683,2608.3,2608.2,0.0651979]
[1727322945191,5.60354683,2608.3,2607.9,3.06759]
[1727322945434,2.53641683,2608.3,2608.2,0.0651979]
[1727322945596,2.44056311,2608.3,2607.8,3.10581]
[1727322945928,3.88025,2608.2,2607.8,3.10581]
[1727322946931,0.813,2608.2,2607.9,0.0651979]
[1727322952727,1.65233403,2608.1,2607.9,0.0651979]
[1727322953355,0.89996635,2608.0,2607.6,3.1055494]
[1727322953525,1.65233403,2607.8,2607.6,6.1734394]
[1727322953856,1.65233403,2607.8,2607.6,3.1055494]
[1727322954023,1.65233403,2607.8,2607.7,3.06783]
[1727322956632,1.65233403,2607.8,2607.6,3.1055494]
[1727322957049,1.65233403,2607.8,2607.6,6.1734294]
[1727322957447,1.65233403,2607.8,2607.6,3.1055494]
[1727322957662,1.65233403,2607.8,2607.6,6.1734294]
[1727322958567,1.65233403,2607.8,2607.6,3.1055494]
[1727322958860,1.65233403,2607.8,2607.6,0.0376694]
[1727322958861,1.90756419,2607.8,2607.6,0.0376694]
[1727322959733,0.7916,2607.7,2607.6,0.0376694]
[1727322960963,0.88748134,2607.7,2607.6,0.0376694]
[1727322961465,0.7916,2607.7,2607.6,0.0376694]
[1727322961670,1.36828942,2607.7,2607.6,0.0376694]
[1727322962172,1.36828942,2607.7,2607.6,0.10315215]
[1727322965256,0.7916,2607.7,2607.6,0.10315215]
[1727322971980,2.44393403,2607.7,2607.6,0.10315215]
[1727322978002,5.51176403,2607.7,2607.6,0.10315215]
[1727322979121,2.44393403,2607.7,2607.6,0.10315215]
[1727322980905,5.51176403,2607.7,2607.6,0.10315215]
[1727322981211,6.40482454,2607.7,2607.6,0.10315215]
[1727322988098,3.33699454,2607.7,2607.6,0.10315215]
[1727322988991,6.50070543,2607.7,2607.6,0.10315215]
[1727322991797,4.75249051,2607.7,2607.6,0.10315215]
[1727322992004,3.88156,2607.9,2607.6,0.10315215]
[1727322992219,1.65233403,2607.7,2607.6,0.10315215]
[1727322993227,0.7718,2608.1,2607.6,0.10315215]
[1727322993439,5.49155403,2608.1,2607.6,0.10315215]
[1727322993730,5.49155403,2608.1,2607.7,0.0381]
[1727322994092,5.49155403,2608.1,2607.8,0.06640656]
[1727322994515,5.49155403,2608.1,2607.7,0.0381]
[1727322994700,4.71975403,2608.1,2607.9,0.06640656]
[1727322994915,5.58521635,2608.1,2607.8,0.0662684]
[1727322995099,4.71975403,2608.1,2607.7,0.0381]
[1727322995304,4.71975403,2608.1,2607.9,0.0662684]
[1727322995503,5.58521435,2608.1,2607.7,0.0381]
[1727322995698,4.71975403,2608.1,2608.0,0.0662684]
[1727322995897,4.71975403,2608.1,2607.7,0.0381]
[1727322996146,4.71975403,2608.1,2608.0,0.0662684]
[1727322996344,5.27849635,2608.1,2607.7,0.0381]
[1727322996545,7.78720403,2608.1,2607.7,0.0381]
[1727322996707,4.71975403,2608.1,2607.7,0.0381]
[1727322997044,4.71975403,2608.1,2607.8,0.0662684]
[1727322997196,3.06742,2608.1,2607.8,0.0662684]
[1727322997401,1.65233403,2608.0,2607.7,0.0381]
[1727322997642,1.65233403,2608.0,2607.9,0.0662684]
[1727322998640,1.65233403,2608.0,2607.7,0.0381]
[1727322998841,1.65233403,2608.0,2607.9,0.0662684]
[1727322999005,1.65233403,2608.0,2607.7,0.0381]
[1727322999204,1.65233403,2608.0,2607.9,0.0662684]
[1727322999414,1.65233403,2608.0,2607.7,0.0381]
[1727322999634,1.65233403,2608.0,2607.9,0.0662684]
[1727322999834,1.65233403,2608.0,2607.7,0.0381]
[1727323000077,1.65233403,2608.0,2607.9,0.0662684]
[1727323000650,1.65233403,2608.0,2607.7,0.0381]
[1727323000831,1.65233403,2608.0,2607.9,0.0662684]
[1727323001446,1.65233403,2608.0,2607.7,0.0381]
[1727323001939,1.65233403,2608.0,2607.8,0.0662684]
[1727323002144,1.65233403,2608.0,2607.7,0.0381]
[1727323002352,1.65233403,2608.0,2607.9,0.0662684]
[1727323002506,1.65233403,2608.0,2607.7,0.0381]
[1727323002708,1.65233403,2608.0,2607.8,0.0659662]
[1727323003218,1.65233403,2608.0,2607.9,0.0659662]
[1727323003547,1.65233403,2608.0,2607.7,0.0381]
[1727323003719,1.65233403,2608.0,2607.9,0.0659662]
[1727323003927,1.65233403,2608.0,2607.7,0.0381]
[1727323004124,1.65233403,2608.0,2607.8,0.0659662]
[1727323004332,1.65233403,2608.0,2607.7,0.0381]
[1727323004560,1.65233403,2608.0,2607.8,0.0659662]
[1727323004854,1.65233403,2608.0,2607.7,0.0381]
[1727323005021,1.65233403,2608.0,2607.9,0.0659662]
[1727323005217,1.65233403,2608.0,2607.7,0.0381]
[1727323005451,1.65233403,2608.0,2607.9,0.0659662]
[1727323005658,1.65233403,2608.0,2607.7,0.0381]
[1727323005829,1.65233403,2608.0,2607.9,0.0659662]
[1727323006149,1.65233403,2608.0,2607.7,0.0381]
[1727323006374,1.65233403,2608.0,2607.9,0.0659662]
[1727323006951,1.65233403,2608.0,2607.7,0.0381]
[1727323007145,1.65233403,2608.0,2607.9,0.0659662]
[1727323007350,1.65233403,2608.0,2607.7,0.0381]
[1727323007586,1.65233403,2608.0,2607.9,0.0659662]
[1727323007852,1.65233403,2608.0,2607.7,0.0381]
[1727323008047,4.71982403,2608.0,2607.9,0.0659662]
[1727323008251,3.06767,2607.9,2607.6,0.0376694]
[1727323010751,3.0676,2607.9,2607.6,0.0376694]
[1727323015187,6.30885843,2608.0,2607.6,0.0376694]
[1727323017454,3.24135843,2608.0,2607.6,3.1056094]
[1727323017666,6.30885843,2608.0,2607.6,0.0376694]
[1727323017860,1.65233403,2607.8,2607.6,0.0376694]
[1727323018397,1.74820492,2607.8,2607.6,0.0376694]
[1727323019990,4.81594492,2607.8,2607.6,0.0376694]
[1727323020472,3.06783,2607.7,2607.6,0.0376694]
[1727323020799,3.89533,2607.7,2607.6,0.0376694]
[1727323021012,4.95610055,2607.7,2607.6,0.0376694]
[1727323021851,4.95610055,2607.7,2607.6,0.10372194]
[1727323022052,4.86021858,2607.7,2607.6,0.0376694]
[1727323022287,1.79238858,2607.7,2607.6,0.10372194]
[1727323022497,1.79238858,2607.7,2607.6,0.0376694]
[1727323023155,1.79238858,2607.7,2607.6,0.10372194]
[1727323023956,4.86021858,2607.7,2607.6,0.10372194]
[1727323024158,4.95610035,2607.7,2607.6,0.10372194]
[1727323025253,7.95610035,2607.7,2607.6,0.10372194]
[1727323025462,8.33361858,2607.7,2607.6,0.10372194]
[1727323025659,8.33361858,2607.7,2607.6,0.0376694]
[1727323025866,8.33266105,2607.7,2607.6,0.0376694]
[1727323027770,8.72969378,2607.7,2607.6,0.0376694]
[1727323049769,8.72969378,2607.7,2606.8,0.0376694]
[1727323049770,3.06877,2606.9,2606.8,0.0376694]
[1727323050261,3.16468705,2606.9,2606.8,0.0376694]
[1727323050558,3.16468705,2606.9,2606.8,0.10513839]
[1727323050785,3.16468705,2606.9,2606.8,0.0376694]
[1727323051119,3.16468705,2606.9,2606.8,0.10515567]
[1727323051325,3.16468705,2606.9,2606.8,0.0376694]
[1727323052823,3.95325616,2606.9,2606.8,0.0376694]
[1727323053654,7.50325616,2606.9,2606.8,0.0376694]
[1727323054153,8.27765616,2606.9,2606.8,0.0376694]
[1727323054325,8.57792436,2606.9,2606.8,0.0376694]
[1727323054545,7.80352436,2606.9,2606.8,0.0376694]
[1727323074499,8.90585839,2606.9,2606.8,0.0376694]
[1727323074796,4.72110403,2606.9,2606.8,0.0376694]
[1727323079019,4.72110403,2606.9,2606.8,0.10172196]
[1727323079169,4.72110403,2606.9,2606.8,0.0376694]
[1727323079875,4.72110403,2606.9,2606.8,0.10172196]
[1727323080785,4.72110403,2606.9,2606.8,0.0376694]
[1727323081275,4.72110403,2606.9,2606.8,0.10172196]
[1727323083214,5.67422092,2606.9,2606.8,0.0376694]
[1727323083512,9.22422092,2606.9,2606.8,0.0376694]
[1727323083676,9.12831043,2606.9,2606.8,0.0376694]
[1727323083874,9.52441106,2606.9,2606.8,0.0376694]
[1727323085876,10.28431106,2606.9,2606.8,0.0376694]
[1727323100293,8.63197703,2606.9,2606.8,0.0376694]
[1727323100536,8.97441106,2606.9,2606.8,0.0376694]
[1727323100705,4.72110403,2606.9,2606.8,0.0376694]
[1727323100910,4.8170194,2606.9,2606.8,0.0376694]
[1727323101952,4.8170194,2606.9,2606.8,0.10202452]
[1727323102152,4.8170194,2606.9,2606.8,0.0376694]
[1727323102457,4.72110403,2606.9,2606.8,0.10202452]
[1727323102635,4.72110403,2606.9,2606.8,0.0376694]
[1727323104550,1.65233403,2606.9,2606.8,0.0376694]
[1727323104713,4.72110403,2606.9,2606.8,0.0376694]
[1727323104910,4.72110403,2606.9,2606.8,0.10179978]
[1727323107914,3.06877,2606.9,2606.8,0.10179978]
[1727323108344,4.72110403,2606.9,2606.8,0.10179978]
[1727323108544,3.06821,2607.4,2606.8,0.10179978]
[1727323108752,4.81625377,2607.6,2607.1,3.06853]
[1727323109076,7.78840403,2607.6,2607.1,0.0381]
[1727323109256,3.06817,2607.5,2607.1,0.0381]
[1727323109459,3.06817,2607.5,2607.3,0.0381]
[1727323109775,3.06814,2607.5,2607.3,0.0381]
[1727323110275,4.72052403,2607.4,2607.3,0.0381]
[1727323110567,1.65233403,2607.4,2607.3,0.0381]
[1727323111680,1.65233403,2607.4,2607.3,0.10175503]
[1727323115388,4.72052403,2607.4,2607.3,0.10175503]
[1727323120551,4.72052403,2607.4,2607.3,0.06365503]
[1727323120756,5.49937843,2607.4,2607.3,0.06365503]
[1727323121080,5.49937843,2607.4,2607.1,0.0381]
[1727323121454,5.49937843,2607.4,2607.2,0.06311067]
[1727323122368,3.16419604,2607.3,2607.2,0.06311067]
[1727323122797,3.06848,2607.2,2606.9,0.0381]
[1727323122993,0.09589982,2607.1,2606.9,0.0381]
[1727323123161,1.65233403,2607.2,2606.9,0.0381]
[1727323123501,4.72081403,2607.2,2606.9,0.0381]
[1727323124901,1.65233403,2607.0,2606.9,0.0381]
[1727323125225,1.74823448,2607.0,2606.9,0.0381]
[1727323125591,1.65233403,2607.0,2606.9,0.0381]
[1727323126821,1.65233403,2607.0,2606.9,0.10102922]
[1727323127319,1.65233403,2607.0,2606.9,0.06292922]
[1727323131740,2.51863025,2607.0,2606.9,0.06292922]
[1727323131909,5.58729025,2607.0,2606.9,0.06292922]
[1727323132110,5.68320025,2607.0,2606.9,0.06292922]
[1727323138952,2.61454025,2607.0,2606.9,0.06292922]
[1727323139346,3.06851,2607.2,2606.9,0.06292922]
[1727323139526,4.72084403,2607.2,2606.9,0.10102922]
[1727323140433,1.65233403,2607.2,2606.9,0.10102922]
[1727323140627,4.72079403,2607.2,2606.9,0.10102922]
[1727323141935,3.06834,2607.3,2606.9,0.10102922]
[1727323142160,3.16424012,2607.3,2606.9,0.10102922]
[1727323142469,6.23264012,2607.3,2606.9,0.10102922]
[1727323142621,3.06843,2607.2,2606.9,0.10102922]
[1727323143062,3.16424012,2607.3,2606.9,0.10102922]
[1727323143471,6.23263012,2607.3,2606.9,0.10102922]
[1727323143756,3.06846,2607.2,2606.9,0.10102922]
[1727323143957,3.16424012,2607.3,2606.9,0.10102922]
[1727323143958,3.06809,2607.5,2606.9,0.10102922]
[1727323144164,3.06809,2607.5,2607.0,3.10669]
[1727323144323,3.06809,2607.5,2607.1,0.10121063]